Workbook

Sheet Balance Cuentas
A1: Capital | F1: =SUM(A4:C4)+F4 -> 34.569 | K1: Concepto | L1: (Varios elementos)
A3: Efectivo | B3: BanCoppel | C3: BancoAzteca | D3: StoriCuenta | E3: Intereses generados | F3: StoriCuenta Total | K3: Suma de Monto | L3: Etiquetas de columna
A4: =SUMIF(Registros!$D$2:$D$9989, 'Balance Cuentas'!A3, Registros!$E$2:$E$9) -> 0 | B4: =SUMIF(Registros!$D$2:$D$9989, 'Balance Cuentas'!B3, Registros!$E$2:$E$9989) -> 0.349 | C4: =SUMIF(Registros!$D$2:$D$9989, 'Balance Cuentas'!C3, Registros!$E$2:$E$9989) -> 7.560174708e-12 | D4: =SUMIF(Registros!$D$2:$D$9989, 'Balance Cuentas'!D3, Registros!$E$2:$E$9989) -> 24.22 | E4: 10 | F4: =E4+D4 -> 34.22 | K4: Etiquetas de fila | L4: Egreso | M4: Ingreso | N4: Total general
K5: mar | L5: -32606.92 | M5: 15344.15 | N5: -17262.77
K6: abr | L6: -107812.7 | M6: 85304.5 | N6: -22508.2
A7: Tarjeta de Credito | B7: Linea de credito | C7: Saldo Utilizado | D7: Linea de Credito Diponible | E7: Monto para liquidar | F7: Dia de pago del mes | K7: may | L7: -44594.37 | M7: 29746.22 | N7: -14848.15
A8: DidiCard | B8: 8000 | C8: ='Tarjetas de Credito'!N2 -> -7996.429 | D8: =B8+Tabla3[[#This Row],[Saldo Utilizado]] -> 3.571 | E8: =B8-D8 -> 7996.429 | F8: 2025-12-15 | G8: Monto para liquidar Tarjetas de Credito | K8: jun | L8: -24741.47 | M8: 12649.83 | N8: -12091.64
A9: KlarkCard | B9: 2000 | C9: ='Tarjetas de Credito'!J2 -> -1991 | D9: =B9+Tabla3[[#This Row],[Saldo Utilizado]] -> 9 | E9: =B9-D9 -> 1991 | F9: 2026-01-04 | K9: oct | L9: -46673.19 | M9: 38079.89 | N9: -8593.3
A10: RappiCard | B10: 6000 | C10: ='Tarjetas de Credito'!B2 -> -5959.01 | D10: =B10+Tabla3[[#This Row],[Saldo Utilizado]] -> 40.99 | E10: =B10-D10 -> 5959.01 | F10: 2026-01-05 | K10: nov | L10: -34015.461 | M10: 10407 | N10: -23608.461
A11: Liverpool | B11: 7779.91 | C11: ='Tarjetas de Credito'!R2 -> -7779.91 | D11: =B11+Tabla3[[#This Row],[Saldo Utilizado]] -> 0 | E11: =B11-D11 -> 7779.91 | F11: 2026-01-15 | K11: Total general | L11: -290444.111 | M11: 191531.59 | N11: -98912.521
A12: StoriCard | B12: 3300 | C12: ='Tarjetas de Credito'!F2 -> -3222 | D12: =B12+Tabla3[[#This Row],[Saldo Utilizado]] -> 78 | E12: =B12-D12 -> 3222 | F12: 2026-01-17 | G12: =SUM(Tabla3[[Monto para liquidar ]]) -> 26948.349
A15: Prestamo | B15: Monto de Prestamo | C15: Abonos | D15: Monto para liquidar | E15: Pago Correspondiente | F15: Dia de pago del mes
A16: Dpvale | B16: =550*10 -> 5500 | C16: =550*5 -> 2750 | D16: =B16-C16 -> 2750
A17: Coppel | B17: 32474 | C17: =Prestamos!L2 -> 0 | D17: =B17-C17 -> 32474 | E17: 3400 | F17: 30 | G17: Monto para liquidar Prestamos
A18: ITESO | B18: 292000 | C18: =Prestamos!O2 -> 0 | D18: 292000 | E18: 4000 | F18: 30
A19: BancoAzteca | B19: 7461 | C19: =Prestamos!R2 -> 428 | D19: =B19-C19 -> 7033 | E19: 225 | F19: 4 veces al mes
G20: =SUM(Tabla4[Monto para liquidar]) -> 334257
A22: Suscripciones | B22: Monto | C22: Dia de pago del mes
A23: Telmex | B23: 630 | C23: 1
A24: OneDrive | B24: 184 | C24: 5
A25: Spotify | B25: 169 | C25: 15
A26: Telcel P | B26: 449 | C26: 15 | D26: Gasto total en suscripciones
A27: Carro | B27: 8000 | C27: 30 | D27: =SUM(Tabla5[[Monto ]]) -> 9432
E32: Saldo Inicial | F32: =F1 -> 34.569
A33: Pagos mensuales | E33: Plan Ingreso
A34: Fecha | B34: Pago | C34: Monto | E34: Fecha | F34: Ingreso esperado | G34: Ingreso acum esperado | H34: Ingreso real | I34: Ingreso acum real | J34: Gasto | K34: Gasto acumulado | L34: Ingreso - gasto
A35: 2026-01-06 | B35: BancoA | C35: 0 | E35: 2025-12-01 | F35: 300 | G35: 300 | H35: 0 | I35: 0 | L35: 300
A36: 2026-01-13 | B36: BancoA | C36: 0 | E36: 2025-12-02 | F36: 300 | G36: =Tabla6[[#This Row],[Ingreso esperado]]+G35 -> 600 | H36: 0 | I36: =I35+Tabla6[[#This Row],[Ingreso real]] -> 0 | K36: =Tabla6[[#This Row],[Gasto]]+K35 -> 0 | L36: =L35+Tabla6[[#This Row],[Ingreso esperado]]-Tabla6[[#This Row],[Gasto]] -> 600
A37: 2026-01-07 | B37: Telmex | C37: 700 | E37: 2025-12-03 | F37: 300 | G37: =Tabla6[[#This Row],[Ingreso esperado]]+G36 -> 900 | H37: 0 | I37: =I36+Tabla6[[#This Row],[Ingreso real]] -> 0 | J37: =C35 -> 0 | K37: =Tabla6[[#This Row],[Gasto]]+K36 -> 0 | L37: =L36+Tabla6[[#This Row],[Ingreso esperado]]-Tabla6[[#This Row],[Gasto]] -> 900
A38: 2026-01-14 | B38: OneDrive | C38: 190 | E38: 2025-12-04 | F38: 300 | G38: =Tabla6[[#This Row],[Ingreso esperado]]+G37 -> 1200 | H38: 0 | I38: =I37+Tabla6[[#This Row],[Ingreso real]] -> 0 | K38: =Tabla6[[#This Row],[Gasto]]+K37 -> 0 | L38: =L37+Tabla6[[#This Row],[Ingreso esperado]]-Tabla6[[#This Row],[Gasto]] -> 1200
E39: 2025-12-05 | F39: 300 | G39: =Tabla6[[#This Row],[Ingreso esperado]]+G38 -> 1500 | H39: 0 | I39: =I38+Tabla6[[#This Row],[Ingreso real]] -> 0 | K39: =Tabla6[[#This Row],[Gasto]]+K38 -> 0 | L39: =L38+Tabla6[[#This Row],[Ingreso esperado]]-Tabla6[[#This Row],[Gasto]] -> 1500
A40: 2026-01-15 | B40: Carro | C40: 1000 | E40: 2025-12-06 | F40: 1500 | G40: =Tabla6[[#This Row],[Ingreso esperado]]+G39 -> 3000 | H40: 0 | I40: =I39+Tabla6[[#This Row],[Ingreso real]] -> 0 | K40: =Tabla6[[#This Row],[Gasto]]+K39 -> 0 | L40: =L39+Tabla6[[#This Row],[Ingreso esperado]]-Tabla6[[#This Row],[Gasto]] -> 3000
A41: 2026-01-17 | B41: Telcel | C41: 500 | E41: 2025-12-07 | F41: 1500 | G41: =Tabla6[[#This Row],[Ingreso esperado]]+G40 -> 4500 | H41: =1490+1150 -> 2640 | I41: =I40+Tabla6[[#This Row],[Ingreso real]] -> 2640 | J41: =C36 -> 0 | K41: =Tabla6[[#This Row],[Gasto]]+K40 -> 0 | L41: =L40+Tabla6[[#This Row],[Ingreso esperado]]-Tabla6[[#This Row],[Gasto]] -> 4500
A42: 2026-01-15 | B42: Dpvale | C42: 0 | E42: 2025-12-08 | F42: 300 | G42: =Tabla6[[#This Row],[Ingreso esperado]]+G41 -> 4800 | I42: =I41+Tabla6[[#This Row],[Ingreso real]] -> 2640 | K42: =Tabla6[[#This Row],[Gasto]]+K41 -> 0 | L42: =L41+Tabla6[[#This Row],[Ingreso esperado]]-Tabla6[[#This Row],[Gasto]] -> 4800
A43: 2026-01-20 | B43: BancoA | C43: 230 | E43: 2025-12-09 | F43: 300 | G43: =Tabla6[[#This Row],[Ingreso esperado]]+G42 -> 5100 | I43: =I42+Tabla6[[#This Row],[Ingreso real]] -> 2640 | K43: =Tabla6[[#This Row],[Gasto]]+K42 -> 0 | L43: =L42+Tabla6[[#This Row],[Ingreso esperado]]-Tabla6[[#This Row],[Gasto]] -> 5100
E44: 2025-12-10 | F44: 300 | G44: =Tabla6[[#This Row],[Ingreso esperado]]+G43 -> 5400 | I44: =I43+Tabla6[[#This Row],[Ingreso real]] -> 2640 | J44: =C37 -> 700 | K44: =Tabla6[[#This Row],[Gasto]]+K43 -> 700 | L44: =L43+Tabla6[[#This Row],[Ingreso esperado]]-Tabla6[[#This Row],[Gasto]] -> 4700
A45: 2026-01-15 | B45: Mercado pago | C45: 0 | E45: 2025-12-11 | F45: 300 | G45: =Tabla6[[#This Row],[Ingreso esperado]]+G44 -> 5700 | I45: =I44+Tabla6[[#This Row],[Ingreso real]] -> 2640 | J45: =C38 -> 190 | K45: =Tabla6[[#This Row],[Gasto]]+K44 -> 890 | L45: =L44+Tabla6[[#This Row],[Ingreso esperado]]-Tabla6[[#This Row],[Gasto]] -> 4810
A46: 2026-01-22 | B46: DidiCard | C46: 5500 | E46: 2025-12-12 | F46: 300 | G46: =Tabla6[[#This Row],[Ingreso esperado]]+G45 -> 6000 | I46: =I45+Tabla6[[#This Row],[Ingreso real]] -> 2640 | K46: =Tabla6[[#This Row],[Gasto]]+K45 -> 890 | L46: =L45+Tabla6[[#This Row],[Ingreso esperado]]-Tabla6[[#This Row],[Gasto]] -> 5110
A47: 2026-01-24 | B47: Spotify | C47: 170 | E47: 2025-12-13 | F47: 1500 | G47: =Tabla6[[#This Row],[Ingreso esperado]]+G46 -> 7500 | I47: =I46+Tabla6[[#This Row],[Ingreso real]] -> 2640 | K47: =Tabla6[[#This Row],[Gasto]]+K46 -> 890 | L47: =L46+Tabla6[[#This Row],[Ingreso esperado]]-Tabla6[[#This Row],[Gasto]] -> 6610
A48: 2026-01-17 | B48: Stori | C48: 0 | E48: 2025-12-14 | F48: 1500 | G48: =Tabla6[[#This Row],[Ingreso esperado]]+G47 -> 9000 | I48: =I47+Tabla6[[#This Row],[Ingreso real]] -> 2640 | K48: =Tabla6[[#This Row],[Gasto]]+K47 -> 890 | L48: =L47+Tabla6[[#This Row],[Ingreso esperado]]-Tabla6[[#This Row],[Gasto]] -> 8110
A49: 2026-01-27 | B49: BancoA | C49: 230 | E49: 2025-12-15 | F49: =7200+300 -> 7500 | G49: =Tabla6[[#This Row],[Ingreso esperado]]+G48 -> 16500 | I49: =I48+Tabla6[[#This Row],[Ingreso real]] -> 2640 | J49: =C40+C41 -> 1500 | K49: =Tabla6[[#This Row],[Gasto]]+K48 -> 2390 | L49: =L48+Tabla6[[#This Row],[Ingreso esperado]]-Tabla6[[#This Row],[Gasto]] -> 14110
A50: 2026-01-30 | B50: Dpvale | C50: 550 | E50: 2025-12-16 | F50: 300 | G50: =Tabla6[[#This Row],[Ingreso esperado]]+G49 -> 16800 | I50: =I49+Tabla6[[#This Row],[Ingreso real]] -> 2640 | K50: =Tabla6[[#This Row],[Gasto]]+K49 -> 2390 | L50: =L49+Tabla6[[#This Row],[Ingreso esperado]]-Tabla6[[#This Row],[Gasto]] -> 14410
D51: =SUM(Tabla2[Monto]) -> 9070 | E51: 2025-12-17 | F51: 300 | G51: =Tabla6[[#This Row],[Ingreso esperado]]+G50 -> 17100 | I51: =I50+Tabla6[[#This Row],[Ingreso real]] -> 2640 | J51: =C42+C43+C44 -> 230 | K51: =Tabla6[[#This Row],[Gasto]]+K50 -> 2620 | L51: =L50+Tabla6[[#This Row],[Ingreso esperado]]-Tabla6[[#This Row],[Gasto]] -> 14480
E52: 2025-12-18 | F52: 300 | G52: =Tabla6[[#This Row],[Ingreso esperado]]+G51 -> 17400 | I52: =I51+Tabla6[[#This Row],[Ingreso real]] -> 2640 | K52: =Tabla6[[#This Row],[Gasto]]+K51 -> 2620 | L52: =L51+Tabla6[[#This Row],[Ingreso esperado]]-Tabla6[[#This Row],[Gasto]] -> 14780
E53: 2025-12-19 | F53: 300 | G53: =Tabla6[[#This Row],[Ingreso esperado]]+G52 -> 17700 | I53: =I52+Tabla6[[#This Row],[Ingreso real]] -> 2640 | K53: =Tabla6[[#This Row],[Gasto]]+K52 -> 2620 | L53: =L52+Tabla6[[#This Row],[Ingreso esperado]]-Tabla6[[#This Row],[Gasto]] -> 15080
E54: 2025-12-20 | F54: 1500 | G54: =Tabla6[[#This Row],[Ingreso esperado]]+G53 -> 19200 | I54: =I53+Tabla6[[#This Row],[Ingreso real]] -> 2640 | K54: =Tabla6[[#This Row],[Gasto]]+K53 -> 2620 | L54: =L53+Tabla6[[#This Row],[Ingreso esperado]]-Tabla6[[#This Row],[Gasto]] -> 16580
E55: 2025-12-21 | F55: 1500 | G55: =Tabla6[[#This Row],[Ingreso esperado]]+G54 -> 20700 | I55: =I54+Tabla6[[#This Row],[Ingreso real]] -> 2640 | K55: =Tabla6[[#This Row],[Gasto]]+K54 -> 2620 | L55: =L54+Tabla6[[#This Row],[Ingreso esperado]]-Tabla6[[#This Row],[Gasto]] -> 18080
E56: 2025-12-22 | F56: 300 | G56: =Tabla6[[#This Row],[Ingreso esperado]]+G55 -> 21000 | I56: =I55+Tabla6[[#This Row],[Ingreso real]] -> 2640 | K56: =Tabla6[[#This Row],[Gasto]]+K55 -> 2620 | L56: =L55+Tabla6[[#This Row],[Ingreso esperado]]-Tabla6[[#This Row],[Gasto]] -> 18380
E57: 2025-12-23 | F57: 300 | G57: =Tabla6[[#This Row],[Ingreso esperado]]+G56 -> 21300 | I57: =I56+Tabla6[[#This Row],[Ingreso real]] -> 2640 | K57: =Tabla6[[#This Row],[Gasto]]+K56 -> 2620 | L57: =L56+Tabla6[[#This Row],[Ingreso esperado]]-Tabla6[[#This Row],[Gasto]] -> 18680
E58: 2025-12-24 | F58: 300 | G58: =Tabla6[[#This Row],[Ingreso esperado]]+G57 -> 21600 | I58: =I57+Tabla6[[#This Row],[Ingreso real]] -> 2640 | J58: =C45+C46+C47 -> 5670 | K58: =Tabla6[[#This Row],[Gasto]]+K57 -> 8290 | L58: =L57+Tabla6[[#This Row],[Ingreso esperado]]-Tabla6[[#This Row],[Gasto]] -> 13310
E59: 2025-12-25 | F59: 300 | G59: =Tabla6[[#This Row],[Ingreso esperado]]+G58 -> 21900 | I59: =I58+Tabla6[[#This Row],[Ingreso real]] -> 2640 | K59: =Tabla6[[#This Row],[Gasto]]+K58 -> 8290 | L59: =L58+Tabla6[[#This Row],[Ingreso esperado]]-Tabla6[[#This Row],[Gasto]] -> 13610
E60: 2025-12-26 | F60: 300 | G60: =Tabla6[[#This Row],[Ingreso esperado]]+G59 -> 22200 | I60: =I59+Tabla6[[#This Row],[Ingreso real]] -> 2640 | K60: =Tabla6[[#This Row],[Gasto]]+K59 -> 8290 | L60: =L59+Tabla6[[#This Row],[Ingreso esperado]]-Tabla6[[#This Row],[Gasto]] -> 13910
E61: 2025-12-27 | F61: 1500 | G61: =Tabla6[[#This Row],[Ingreso esperado]]+G60 -> 23700 | I61: =I60+Tabla6[[#This Row],[Ingreso real]] -> 2640 | K61: =Tabla6[[#This Row],[Gasto]]+K60 -> 8290 | L61: =L60+Tabla6[[#This Row],[Ingreso esperado]]-Tabla6[[#This Row],[Gasto]] -> 15410
E62: 2025-12-28 | F62: 1500 | G62: =Tabla6[[#This Row],[Ingreso esperado]]+G61 -> 25200 | I62: =I61+Tabla6[[#This Row],[Ingreso real]] -> 2640 | K62: =Tabla6[[#This Row],[Gasto]]+K61 -> 8290 | L62: =L61+Tabla6[[#This Row],[Ingreso esperado]]-Tabla6[[#This Row],[Gasto]] -> 16910
E63: 2025-12-29 | F63: 300 | G63: =Tabla6[[#This Row],[Ingreso esperado]]+G62 -> 25500 | I63: =I62+Tabla6[[#This Row],[Ingreso real]] -> 2640 | K63: =Tabla6[[#This Row],[Gasto]]+K62 -> 8290 | L63: =L62+Tabla6[[#This Row],[Ingreso esperado]]-Tabla6[[#This Row],[Gasto]] -> 17210
E64: 2025-12-30 | F64: =7200+300 -> 7500 | G64: =Tabla6[[#This Row],[Ingreso esperado]]+G63 -> 33000 | I64: =I63+Tabla6[[#This Row],[Ingreso real]] -> 2640 | J64: =C48 -> 0 | K64: =Tabla6[[#This Row],[Gasto]]+K63 -> 8290 | L64: =L63+Tabla6[[#This Row],[Ingreso esperado]]-Tabla6[[#This Row],[Gasto]] -> 24710
E65: 2025-12-31 | F65: 300 | G65: =Tabla6[[#This Row],[Ingreso esperado]]+G64 -> 33300 | I65: =I64+Tabla6[[#This Row],[Ingreso real]] -> 2640 | J65: =C49 -> 230 | K65: =Tabla6[[#This Row],[Gasto]]+K64 -> 8520 | L65: =L64+Tabla6[[#This Row],[Ingreso esperado]]-Tabla6[[#This Row],[Gasto]] -> 24780

Sheet Registros
A1: Fecha | B1: Tipo (Ingreso/Gasto) | C1: Concepto | D1: Cuenta (Efectivo/Cuenta Bancaria) | E1: Monto
A2: 2025-03-24 | B2: Ingreso | C2: DIDI Driver | D2: BancoAzteca | E2: 239
A3: 2025-03-24 | B3: Ingreso | C3: DIDI Driver | D3: Efectivo | E3: 190
A4: 2025-03-24 | B4: Egreso | C4: Compras | D4: RappiCard | E4: -6595.91
A5: 2025-03-24 | B5: Egreso | C5: Compras | D5: StoriCard | E5: -3299.75
A6: 2025-03-24 | B6: Egreso | C6: Compras | D6: KlarkCard | E6: -1998.88
A7: 2025-03-24 | B7: Egreso | C7: DIDICard | D7: DidiCard | E7: -1499
A8: 2025-03-24 | B8: Egreso | C8: Compras | D8: Liverpool | E8: -4350.71
A9: 2025-03-24 | B9: Egreso | C9: Comida | D9: Efectivo | E9: -10
A10: 2025-03-25 | B10: Ingreso | C10: DIDI Driver | D10: Efectivo | E10: 55
A11: 2025-03-25 | B11: Egreso | C11: Estacionamiento | D11: Efectivo | E11: -14
A12: 2025-03-25 | B12: Egreso | C12: Corte de Cabello | D12: Efectivo | E12: -170
A13: 2025-03-25 | B13: Egreso | C13: DIDICard | D13: BancoAzteca | E13: -239
A14: 2025-03-25 | B14: Egreso | C14: Gasolina | D14: DidiCard | E14: -200
A15: 2025-03-26 | B15: Ingreso | C15: Mamá Deposito | D15: DidiCard | E15: 100
A16: 2025-03-26 | B16: Egreso | C16: Didi viaje | D16: DidiCard | E16: -42
A17: 2025-03-26 | B17: Egreso | C17: Didi viaje | D17: DidiCard | E17: -57
A18: 2025-03-26 | B18: Egreso | C18: Camion | D18: Efectivo | E18: -14
A19: 2025-03-26 | B19: Ingreso | C19: DIDI Driver | D19: Efectivo | E19: 440
A20: 2025-03-27 | B20: Egreso | C20: Estacionamiento | D20: Efectivo | E20: -14
A21: 2025-03-27 | B21: Egreso | C21: Comida | D21: Efectivo | E21: -20
A22: 2025-03-27 | B22: Ingreso | C22: DIDI Driver | D22: Efectivo | E22: 188
A23: 2025-03-27 | B23: Egreso | C23: Telcel S | D23: DidiCard | E23: -25
A24: 2025-03-28 | B24: Egreso | C24: Estacionamiento | D24: Efectivo | E24: -14
A25: 2025-03-28 | B25: Egreso | C25: Valeria | D25: Efectivo | E25: -125
A26: 2025-03-28 | B26: Ingreso | C26: CasBack | D26: DidiCard | E26: 52.12
A27: 2025-03-28 | B27: Egreso | C27: Telcel S | D27: DidiCard | E27: -20
A28: 2025-03-28 | B28: Egreso | C28: Gasolina | D28: Efectivo | E28: -250
A29: 2025-03-28 | B29: Ingreso | C29: DIDI Driver | D29: BanCoppel | E29: 300
A30: 2025-03-28 | B30: Ingreso | C30: DIDI Driver | D30: Efectivo | E30: 55
A31: 2025-03-30 | B31: Egreso | C31: Kiosko | D31: Efectivo | E31: -66
A32: 2025-03-30 | B32: Egreso | C32: Mamá | D32: Efectivo | E32: -65
A33: 2025-03-30 | B33: Egreso | C33: Valeria | D33: BanCoppel | E33: -300
A34: 2025-03-30 | B34: Egreso | C34: Valeria | D34: Efectivo | E34: -20
A35: 2025-03-30 | B35: Egreso | C35: Telcel S | D35: Efectivo | E35: -50
A36: 2025-03-30 | B36: Ingreso | C36: Prestamo Hugo | D36: BanCoppel | E36: 500
A37: 2025-03-30 | B37: Egreso | C37: Gasolina | D37: BanCoppel | E37: -100
A38: 2025-03-30 | B38: Egreso | C38: Valeria | D38: BanCoppel | E38: -159
A39: 2025-03-30 | B39: Egreso | C39: Valeria | D39: BanCoppel | E39: -131
A40: 2025-03-30 | B40: Egreso | C40: Valeria | D40: BanCoppel | E40: -109
A41: 2025-03-30 | B41: Egreso | C41: Gasolina | D41: DidiCard | E41: -40
A42: 2025-03-30 | B42: Egreso | C42: Gasolina | D42: Efectivo | E42: -60
A43: 2025-03-30 | B43: Egreso | C43: Tienda | D43: Efectivo | E43: -29
A44: 2025-03-30 | B44: Egreso | C44: Gasolina | D44: Efectivo | E44: -200
A45: 2025-03-30 | B45: Ingreso | C45: DIDI Driver | D45: Efectivo | E45: 328
A46: 2025-03-30 | B46: Egreso | C46: Baño | D46: Efectivo | E46: -30
A47: 2025-03-30 | B47: Ingreso | C47: DIDI Driver | D47: Efectivo | E47: 846
A48: 2025-03-30 | B48: Egreso | C48: Gasolina | D48: Efectivo | E48: -200
A49: 2025-03-30 | B49: Ingreso | C49: DIDI Driver | D49: Efectivo | E49: 51.5
A50: 2025-03-31 | B50: Egreso | C50: C | D50: Efectivo | E50: -14
A51: 2025-03-31 | B51: Egreso | C51: Cargador | D51: Efectivo | E51: -115
A52: 2025-03-31 | B52: Ingreso | C52: DIDI Driver | D52: BanCoppel | E52: 170
A53: 2025-03-31 | B53: Egreso | C53: Gasolina | D53: Efectivo | E53: -100
A54: 2025-03-31 | B54: Ingreso | C54: DIDI Driver | D54: Efectivo | E54: 1024
A55: 2025-03-31 | B55: Egreso | C55: Mamá | D55: Efectivo | E55: -900
A56: 2025-03-31 | B56: Ingreso | C56: Mamá Deposito | D56: BanCoppel | E56: 2520
A57: 2025-03-31 | B57: Egreso | C57: PrestaMaz | D57: BanCoppel | E57: -1430
A58: 2025-03-31 | B58: Egreso | C58: PrestaMaz Mama | D58: BanCoppel | E58: -1080
A59: 2025-03-31 | B59: Ingreso | C59: IdeasFrescas | D59: BanCoppel | E59: 7285.53
A60: 2025-03-31 | B60: Ingreso | C60: Mamá Deposito | D60: BanCoppel | E60: 1000
A61: 2025-03-31 | B61: Egreso | C61: Mensualidad Carro | D61: BanCoppel | E61: -8440.67
A62: 2025-03-31 | B62: Egreso | C62: Tienda | D62: Efectivo | E62: -10
A63: 2025-04-01 | B63: Egreso | C63: Estacionamiento | D63: Efectivo | E63: -14
A64: 2025-04-01 | B64: Egreso | C64: Valeria | D64: Efectivo | E64: -220
A65: 2025-04-01 | B65: Egreso | C65: Gasolina | D65: Efectivo | E65: -200
A66: 2025-04-01 | B66: Ingreso | C66: DIDI Driver | D66: Efectivo | E66: 603
A67: 2025-04-01 | B67: Ingreso | C67: DIDI Driver | D67: BanCoppel | E67: 400
A68: 2025-04-01 | B68: Egreso | C68: Mamá | D68: Efectivo | E68: -400
A69: 2025-04-01 | B69: Egreso | C69: Mamá | D69: BanCoppel | E69: -340
A70: 2025-04-01 | B70: Egreso | C70: C | D70: BanCoppel | E70: -78
A71: 2025-04-01 | B71: Egreso | C71: Pips Plus | D71: Liverpool | E71: -177
A72: 2025-04-01 | B72: Egreso | C72: Valeria | D72: Liverpool | E72: -1399
A73: 2025-04-02 | B73: Egreso | C73: Estacionamiento | D73: Efectivo | E73: -14
A74: 2025-04-02 | B74: Egreso | C74: Gasolina | D74: Efectivo | E74: -250
A75: 2025-04-02 | B75: Ingreso | C75: DIDI Driver | D75: Efectivo | E75: 433
A76: 2025-04-02 | B76: Egreso | C76: Kiosko | D76: Efectivo | E76: -66
A77: 2025-04-02 | B77: Ingreso | C77: DIDI Driver | D77: Efectivo | E77: =58+34 -> 92
A78: 2025-04-02 | B78: Egreso | C78: Tienda | D78: Efectivo | E78: -20
A79: 2025-04-03 | B79: Egreso | C79: Estacionamiento | D79: Efectivo | E79: -14
A80: 2025-04-03 | B80: Ingreso | C80: DIDI Driver | D80: BanCoppel | E80: 190
A81: 2025-04-03 | B81: Egreso | C81: Gasolina | D81: Efectivo | E81: -255.5
A82: 2025-04-03 | B82: Ingreso | C82: DIDI Driver | D82: Efectivo | E82: 40
A83: 2025-04-03 | B83: Egreso | C83: Valeria | D83: Efectivo | E83: -180
A84: 2025-04-03 | B84: Ingreso | C84: DIDI Driver | D84: Efectivo | E84: 50
A85: 2025-04-03 | B85: Egreso | C85: Telcel S | D85: Efectivo | E85: -50
A86: 2025-04-04 | B86: Egreso | C86: Tienda | D86: Efectivo | E86: -37
A87: 2025-04-04 | B87: Egreso | C87: Camion | D87: Efectivo | E87: -14
A88: 2025-04-04 | B88: Ingreso | C88: DIDI Driver | D88: BanCoppel | E88: 180
A89: 2025-04-04 | B89: Ingreso | C89: DIDI Driver | D89: Efectivo | E89: 128
A90: 2025-04-04 | B90: Egreso | C90: Bancoppel | D90: BanCoppel | E90: -23.2
A91: 2025-04-04 | B91: Egreso | C91: Gasolina | D91: BanCoppel | E91: -300
A92: 2025-04-04 | B92: Egreso | C92: Didi viaje | D92: Efectivo | E92: -30
A93: 2025-04-04 | B93: Ingreso | C93: DIDI Driver | D93: Efectivo | E93: 52
A94: 2025-04-07 | B94: Ingreso | C94: DIDI Driver | D94: Efectivo | E94: 364
A95: 2025-04-07 | B95: Egreso | C95: Valeria | D95: Efectivo | E95: -175
A96: 2025-04-07 | B96: Egreso | C96: Autolavado | D96: Efectivo | E96: -180
A97: 2025-04-07 | B97: Egreso | C97: Gasolina | D97: Efectivo | E97: -555
A98: 2025-04-07 | B98: Ingreso | C98: DIDI Driver | D98: Efectivo | E98: 1000
A99: 2025-04-07 | B99: Egreso | C99: Valeria | D99: Efectivo | E99: -780
A100: 2025-04-07 | B100: Egreso | C100: Telcel S | D100: Efectivo | E100: -50
A101: 2025-04-07 | B101: Ingreso | C101: DIDI Driver | D101: Efectivo | E101: 785
A102: 2025-04-07 | B102: Ingreso | C102: DIDI Driver | D102: Efectivo | E102: 439
A103: 2025-04-07 | B103: Egreso | C103: Gasolina | D103: Efectivo | E103: -205
A104: 2025-04-07 | B104: Egreso | C104: Kiosko | D104: Efectivo | E104: -47
A105: 2025-04-07 | B105: Ingreso | C105: DIDI Driver | D105: Efectivo | E105: 627
A106: 2025-04-07 | B106: Ingreso | C106: DIDI Driver | D106: BanCoppel | E106: 990
A107: 2025-04-07 | B107: Egreso | C107: Comision | D107: Efectivo | E107: -15
A108: 2025-04-07 | B108: Egreso | C108: PrestaMaz | D108: Efectivo | E108: -1430
A109: 2025-04-07 | B109: Egreso | C109: PrestaMaz Mama | D109: BanCoppel | E109: -1080
A110: 2025-04-07 | B110: Ingreso | C110: DIDI Driver | D110: Efectivo | E110: 60
A111: 2025-04-07 | B111: Ingreso | C111: DIDI Driver | D111: BanCoppel | E111: 80
A112: 2025-04-07 | B112: Egreso | C112: Didi viaje | D112: BanCoppel | E112: -43
A113: 2025-04-07 | B113: Egreso | C113: Gasolina | D113: Efectivo | E113: 40
A114: 2025-04-09 | B114: Ingreso | C114: DIDI Driver | D114: Efectivo | E114: 238
A115: 2025-04-09 | B115: Egreso | C115: Didi viaje | D115: Efectivo | E115: -40
A116: 2025-04-09 | B116: Egreso | C116: Gasolina | D116: Efectivo | E116: -167
A117: 2025-04-14 | B117: Ingreso | C117: IdeasFrescas | D117: BanCoppel | E117: 7285.83
A118: 2025-04-14 | B118: Ingreso | C118: DIDI Driver | D118: BancoAzteca | E118: 142
A119: 2025-04-14 | B119: Egreso | C119: BancoAzteca | D119: BanCoppel | E119: -342
A120: 2025-04-14 | B120: Egreso | C120: BancoAzteca | D120: BancoAzteca | E120: -142
A121: 2025-04-14 | B121: Egreso | C121: Intereses | D121: DidiCard | E121: -191.44
A122: 2025-04-14 | B122: Egreso | C122: DidiCard | D122: BanCoppel | E122: -1691.44
A123: 2025-04-14 | B123: Egreso | C123: RappiCard | D123: BanCoppel | E123: -2300
A124: 2025-04-14 | B124: Egreso | C124: Telcel P | D124: RappiCard | E124: -1700
A125: 2025-04-14 | B125: Egreso | C125: Telmex | D125: DidiCard | E125: -977
A126: 2025-04-14 | B126: Egreso | C126: StoriCard | D126: BanCoppel | E126: -200
A127: 2025-04-14 | B127: Egreso | C127: RappiCard | D127: BanCoppel | E127: -500
A128: 2025-04-14 | B128: Egreso | C128: OneDrive | D128: RappiCard | E128: -184.99
A129: 2025-04-14 | B129: Egreso | C129: RappiCard | D129: BanCoppel | E129: -200
A130: 2025-04-14 | B130: Egreso | C130: ChatGpt | D130: RappiCard | E130: -410.8
A131: 2025-04-14 | B131: Ingreso | C131: DIDI Driver | D131: BanCoppel | E131: 2510
A132: 2025-04-14 | B132: Egreso | C132: PrestaMaz | D132: BanCoppel | E132: -1430
A133: 2025-04-14 | B133: Egreso | C133: PrestaMaz Mama | D133: BanCoppel | E133: -1080
A134: 2025-04-14 | B134: Egreso | C134: DidiCard | D134: BanCoppel | E134: -54.05
A135: 2025-04-14 | B135: Egreso | C135: BancoAzteca | D135: BanCoppel | E135: -224
A136: 2025-04-14 | B136: Egreso | C136: RappiCard | D136: BanCoppel | E136: -500
A137: 2025-04-14 | B137: Egreso | C137: Gasolina | D137: RappiCard | E137: -600
A138: 2025-04-15 | B138: Egreso | C138: Gasolina | D138: DidiCard | E138: -546
A139: 2025-04-15 | B139: Egreso | C139: Mamá | D139: Efectivo | E139: -200
A140: 2025-04-15 | B140: Egreso | C140: Kiosko | D140: BanCoppel | E140: -70
A141: 2025-04-15 | B141: Ingreso | C141: Venta | D141: BancoAzteca | E141: 50000
A142: 2025-04-15 | B142: Egreso | C142: KlarkCard | D142: BancoAzteca | E142: -1994.64
A143: 2025-04-15 | B143: Egreso | C143: KlarkCard | D143: Efectivo | E143: -4.24
A144: 2025-04-15 | B144: Egreso | C144: Prestamo Klark | D144: BancoAzteca | E144: -1694.11
A145: 2025-04-15 | B145: Egreso | C145: DidiCard | D145: BancoAzteca | E145: -1474.95
A146: 2025-04-15 | B146: Egreso | C146: Intereses | D146: StoriCard | E146: -382
A147: 2025-04-15 | B147: Egreso | C147: StoriCard | D147: BancoAzteca | E147: -3482
A148: 2025-04-15 | B148: Egreso | C148: Mercado Pago | D148: BancoAzteca | E148: -2571.06
A149: 2025-04-15 | B149: Egreso | C149: Mercado Pago | D149: BancoAzteca | E149: -1666.36
A150: 2025-04-15 | B150: Egreso | C150: Mercado Pago | D150: BancoAzteca | E150: -1052.21
A151: 2025-04-15 | B151: Egreso | C151: Intereses | D151: StoriCard | E151: -0.25
A152: 2025-04-15 | B152: Egreso | C152: Prestamo Klark | D152: BancoAzteca | E152: -2530.61
A153: 2025-04-15 | B153: Egreso | C153: Prestamo Klark | D153: BanCoppel | E153: -519.06
A154: 2025-04-15 | B154: Egreso | C154: Liverpool | D154: BancoAzteca | E154: -5926.71
A155: 2025-04-15 | B155: Egreso | C155: Yeny | D155: BancoAzteca | E155: -2000
A156: 2025-04-15 | B156: Egreso | C156: Telcel P | D156: BancoAzteca | E156: -1621.1
A157: 2025-04-15 | B157: Egreso | C157: Mayra | D157: BancoAzteca | E157: -9000
A158: 2025-04-15 | B158: Egreso | C158: Tacos | D158: BanCoppel | E158: -200
A159: 2025-04-15 | B159: Egreso | C159: Retiro | D159: BanCoppel | E159: -210.94
A160: 2025-04-15 | B160: Ingreso | C160: Retiro de cuenta | D160: Efectivo | E160: 164.24
A161: 2025-04-16 | B161: Egreso | C161: Intereses | D161: RappiCard | E161: -1074.96
A162: 2025-04-16 | B162: Ingreso | C162: Mamá Deposito | D162: RappiCard | E162: 1000
A163: 2025-04-16 | B163: Egreso | C163: RappiCard | D163: BancoAzteca | E163: -6066.66
A164: 2025-04-16 | B164: Ingreso | C164: DIDI Driver | D164: Efectivo | E164: 178
A165: 2025-04-16 | B165: Egreso | C165: StoriCuenta | D165: BancoAzteca | E165: -919.59
A166: 2025-04-16 | B166: Ingreso | C166: Transferencia | D166: StoriCuenta | E166: 919.59
A167: 2025-04-17 | B167: Egreso | C167: Galletas | D167: Efectivo | E167: -20
A168: 2025-04-17 | B168: Egreso | C168: Estadio | D168: Efectivo | E168: -135
A169: 2025-04-17 | B169: Egreso | C169: Cerveza | D169: Efectivo | E169: -100
A170: 2025-04-17 | B170: Egreso | C170: Gasolina | D170: RappiCard | E170: -250
A171: 2025-04-17 | B171: Egreso | C171: Gasolina | D171: Efectivo | E171: -5
A172: 2025-04-17 | B172: Ingreso | C172: DIDI Driver | D172: Efectivo | E172: 453
A173: 2025-04-17 | B173: Egreso | C173: Pre | D173: Efectivo | E173: -25
A174: 2025-04-17 | B174: Egreso | C174: Lentes | D174: BancoAzteca | E174: -2100
A175: 2025-04-17 | B175: Egreso | C175: Prestamo Pancho | D175: BancoAzteca | E175: -1000
A176: 2025-04-17 | B176: Egreso | C176: Luz | D176: Efectivo | E176: -220
A177: 2025-04-20 | B177: Egreso | C177: Fiesta Helena | D177: RappiCard | E177: -600
A178: 2025-04-20 | B178: Egreso | C178: Valeria | D178: Efectivo | E178: -162
A179: 2025-04-20 | B179: Egreso | C179: Valeria | D179: RappiCard | E179: -984.03
A180: 2025-04-20 | B180: Ingreso | C180: Valeria | D180: Efectivo | E180: 500
A181: 2025-04-20 | B181: Egreso | C181: Desayuno | D181: RappiCard | E181: -770
A182: 2025-04-20 | B182: Egreso | C182: Agua | D182: Efectivo | E182: -17
A183: 2025-04-20 | B183: Ingreso | C183: DIDI Driver | D183: Efectivo | E183: 336
A184: 2025-04-20 | B184: Egreso | C184: Café | D184: RappiCard | E184: -132
A185: 2025-04-20 | B185: Egreso | C185: Cerveza | D185: Efectivo | E185: -176
A186: 2025-04-20 | B186: Ingreso | C186: DIDI Driver | D186: Efectivo | E186: 612
A187: 2025-04-20 | B187: Egreso | C187: Gasolina | D187: RappiCard | E187: -500
A188: 2025-04-20 | B188: Egreso | C188: PrestaMaz | D188: BancoAzteca | E188: -1430
A189: 2025-04-20 | B189: Egreso | C189: PrestaMaz Mama | D189: BancoAzteca | E189: -900
A190: 2025-04-20 | B190: Egreso | C190: StoriCuenta | D190: BancoAzteca | E190: -2570
A191: 2025-04-20 | B191: Ingreso | C191: Transferencia | D191: StoriCuenta | E191: 2570
A192: 2025-04-20 | B192: Egreso | C192: StoriCuenta | D192: Efectivo | E192: -1200
A193: 2025-04-20 | B193: Ingreso | C193: Transferencia | D193: StoriCuenta | E193: 1200
A194: 2025-04-21 | B194: Egreso | C194: SkinCare | D194: RappiCard | E194: -701
A195: 2025-04-21 | B195: Egreso | C195: Valeria | D195: RappiCard | E195: -170
A196: 2025-04-21 | B196: Egreso | C196: Agua | D196: Efectivo | E196: -15
A197: 2025-04-21 | B197: Ingreso | C197: Valeria | D197: StoriCuenta | E197: 330
A198: 2025-04-21 | B198: Ingreso | C198: Pancho | D198: StoriCuenta | E198: 1000
A199: 2025-04-21 | B199: Ingreso | C199: DIDI Driver | D199: BanCoppel | E199: 689
A200: 2025-04-21 | B200: Egreso | C200: Gasolina | D200: RappiCard | E200: -300
... 517 more rows

Sheet Ingresos
A1: Tipo (Ingreso/Gasto) | B1: Ingreso
A3: Suma de Monto | B3: Etiquetas de columna
B4: mar | C4: abr | D4: may | E4: jun | F4: oct | G4: nov | H4: Total general
A6: Etiquetas de fila
A7: DIDI Driver | B7: 3886.5 | C7: 16728.5 | D7: 7911.19 | E7: 3858 | F7: 22997.92 | G7: 10363 | H7: 65745.11
A8: IdeasFrescas | B8: 7285.53 | C8: 14571.66 | D8: 7285.83 | E8: 7285.83 | F8: 14544.66 | H8: 50973.51
A9: Intereses | C9: 10.1 | D9: 10 | E9: 6 | H9: 26.1
A10: Venta | C10: 50000 | H10: 50000
A11: Total general | B11: 11172.03 | C11: 81310.26 | D11: 15207.02 | E11: 11149.83 | F11: 37542.58 | G11: 10363 | H11: 166744.72

Sheet Gastos
A1: Tipo (Ingreso/Gasto) | B1: Egreso
A3: Suma de Monto | B3: Etiquetas de columna
B4: mar | C4: abr | D4: may | E4: jun | F4: oct | G4: nov | H4: Total general
A6: Etiquetas de fila
A7: Abuela | C7: -100 | H7: -100
A8: Agua | C8: -32 | F8: -50 | H8: -82
A9: Autolavado | C9: -280 | D9: -100 | F9: -420 | G9: -120 | H9: -920
A10: BancoAzteca | C10: -1156 | D10: -476 | E10: -735.3 | F10: -658 | G10: -428 | H10: -3453.3
A11: Bancoppel | C11: -23.2 | H11: -23.2
A12: Baño | B12: -30 | H12: -30
A13: C | B13: -14 | C13: -78 | H13: -92
A14: Café | C14: -150.8 | D14: -64 | H14: -214.8
A15: Camion | B15: -14 | C15: -26.5 | H15: -40.5
A16: Cargador | B16: -115 | E16: -1661.75 | H16: -1776.75
A17: Cena | C17: -387.5 | D17: -220 | H17: -607.5
A18: Cerveza | C18: -376 | H18: -376
A19: ChatGpt | C19: -410.8 | D19: -391.51 | F19: -369.91 | H19: -1172.22
A20: Comida | B20: -30 | C20: -140 | D20: -708 | E20: -150 | F20: -335 | G20: -659 | H20: -2022
A21: Comision | C21: -15 | H21: -15
A22: Compras | B22: -16245.25 | H22: -16245.25
A23: Corte de Cabello | B23: -170 | G23: -150 | H23: -320
A24: Desayuno | C24: -770 | E24: -582.4 | H24: -1352.4
A25: Despensa | C25: -4193.65 | D25: -2451.17 | E25: -992.75 | F25: -1956.21 | H25: -9593.78
A26: Didi viaje | B26: -99 | C26: -113 | D26: -154 | E26: -40 | G26: -88 | H26: -494
A27: DIDICard | B27: -1738 | C27: -3220.44 | D27: -1482.9 | E27: -1323 | F27: -1931 | G27: -4451.671 | H27: -14147.011
A28: Estacionamiento | B28: -42 | C28: -42 | H28: -84
A29: Estadio | C29: -135 | H29: -135
A30: Farmacia | C30: -193 | D30: -735.16 | H30: -928.16
A31: Fiesta Helena | C31: -600 | H31: -600
A32: Galletas | C32: -20 | F32: -20 | H32: -40
A33: Gasolina | B33: -1150 | C33: -6518.5 | D33: -1979.99 | E33: -2370 | F33: -7279.37 | G33: -3827.64 | H33: -23125.5
A34: Gasto | D34: -1397 | H34: -1397
A35: Google one | C35: -5 | D35: -17 | H35: -22
A36: Intereses | C36: -1648.65 | H36: -1648.65
A37: Kiosko | B37: -66 | C37: -298 | H37: -364
A38: KlarkCard | C38: -1998.88 | F38: -3956.21 | H38: -5955.09
A39: Lentes | C39: -4200 | H39: -4200
A40: Libros | D40: -1918 | H40: -1918
A41: Liverpool | C41: -5926.71 | E41: -928.6 | F41: -4547.28 | G41: -519.32 | H41: -11921.91
A42: Luz | C42: -220 | H42: -220
A43: Mamá | B43: -965 | C43: -11137.58 | D43: -2020 | F43: -2052 | G43: -558 | H43: -16732.58
A44: Mayra | C44: -9000 | H44: -9000
A45: Mensualidad Carro | B45: -8440.67 | H45: -8440.67
A46: Mercado Pago | C46: -5289.63 | E46: -4569.26 | F46: -1877.97 | G46: -1877.97 | H46: -13614.83
A47: OneDrive | C47: -184.99 | D47: -184.99 | F47: -184.99 | G47: -184.99 | H47: -739.96
A48: Oxxo | C48: -46 | H48: -46
A49: Pips Plus | C49: -177 | H49: -177
A50: Pre | C50: -25 | H50: -25
A51: Pree | C51: -800 | H51: -800
A52: PrestaMaz | B52: -1430 | C52: -5720 | D52: -1400 | E52: -2160 | F52: -1432.8 | H52: -12142.8
A53: PrestaMaz Mama | B53: -1080 | C53: -3060 | H53: -4140
A54: Prestamo Klark | C54: -4743.78 | H54: -4743.78
A55: Prestamo Pancho | C55: -1000 | H55: -1000
A56: RappiCard | C56: -10944.34 | D56: -5979.8 | E56: -1111.6 | F56: -5595 | H56: -23630.74
A57: Retiro | C57: -210.94 | H57: -210.94
A58: Semaforo | C58: -5 | H58: -5
A59: SkinCare | C59: -1156 | D59: -1965.4 | H59: -3121.4
A60: Spotify | C60: -169 | D60: -169 | F60: -139 | H60: -477
A61: StoriCard | C61: -4611.69 | D61: -4924.49 | E61: -1647.23 | F61: -2751.73 | G61: -3293.84 | H61: -17228.98
A62: StoriCuenta | C62: -4689.59 | H62: -4689.59
A63: Tacos | C63: -200 | H63: -200
A64: Telcel P | C64: -3321.1 | D64: -1611.41 | F64: -449 | H64: -5381.51
A65: Telcel S | B65: -95 | C65: -100 | D65: -120 | F65: -170 | H65: -485
A66: Telmex | C66: -977 | D66: -1258 | F66: -4 | G66: -658 | H66: -2897
A67: Tienda | B67: -39 | C67: -57 | D67: -183 | E67: -85 | F67: -14.66 | G67: -50 | H67: -428.66
A68: Transferencia | C68: -1500 | D68: -4705 | E68: -2135.57 | F68: -2500 | G68: -1600 | H68: -12440.57
A69: Transito | C69: -100 | H69: -100
A70: Valeria | B70: -844 | C70: -4808.43 | D70: -1470.3 | E70: -1370.6 | F70: -770 | G70: -1076.5 | H70: -10339.83
A71: Yeny | C71: -2000 | H71: -2000
A72: Ropa | D72: -399 | H72: -399
A73: Servicio Carro | D73: -8385 | H73: -8385
A74: Bolsa | D74: -1799.25 | H74: -1799.25
A75: Pau | D75: -630 | H75: -630
A76: Terapia | E76: -500 | H76: -500
A77: Cumple Trabajo | E77: -100 | G77: -100 | H77: -200
A78: Impuestos | E78: -785 | H78: -785
A79: Carrera | E79: -350 | H79: -350
A80: Basquet | E80: -60 | F80: -50 | H80: -110
A81: Torta | E81: -40 | H81: -40
A82: Gym | E82: -546 | F82: -546 | H82: -1092
A83: Soporte lap | E83: -749 | H83: -749
A84: Pan | E84: -60 | H84: -60
A85: Mercancia | E85: -1526.98 | H85: -1526.98
A86: Navegante | E86: -297 | H86: -297
A87: Paty cumpleaños | F87: -100 | H87: -100
A88: Huevos | F88: -170 | G88: -160 | H88: -330
A89: Trabajo | F89: -100 | H89: -100
A90: Carro | F90: -7883.86 | H90: -7883.86
A91: Manejo de cuenta Bancoppel | F91: -23.2 | H91: -23.2
A92: Dpvale | F92: -550 | H92: -550
A93: Medicina | F93: -100 | H93: -100
A94: Transporte | F94: -50 | H94: -50
A95: Starbucks | F95: -136 | H95: -136
A96: Preentreno | G96: -832 | H96: -832
A97: Licencia | G97: -660 | H97: -660
A98: Calcamonia vehícular | G98: -2739 | H98: -2739
A99: Balatas | G99: -1159 | H99: -1159
A100: Pilas | G100: -78.5 | H100: -78.5
A101: Sams | G101: -94.12 | H101: -94.12
A102: Desconocido | G102: -270 | H102: -270
A103: Lavadora | G103: -7779.91 | H103: -7779.91
A104: Dermatologa | G104: -1000 | H104: -1000
A105: Cambio balatas | G105: -1200 | H105: -1200
A106: Total general | B106: -32606.92 | C106: -109312.7 | D106: -49299.37 | E106: -26877.04 | F106: -49173.19 | G106: -35615.461 | H106: -302884.681

Sheet Tarjetas de Credito
A1: Tarjetas De credito
A2: RappiCard | B2: =0+SUM(C4:C281) -> -5959.01 | E2: StoriCard | F2: =0+SUM(G4:G281) -> -3222 | I2: KlarkCard | J2: =0+SUM(K4:K281) -> -1991 | M2: DidiCard | N2: =0+SUM(O4:O281) -> -7996.429 | Q2: Liverpool | R2: =0+SUM(S4:S281) -> -7779.91
A3: Tipo (Ingreso/Gasto) | B3: Concepto | C3: Monto | E3: Tipo (Ingreso/Gasto) | F3: Concepto | G3: Monto | I3: Tipo (Ingreso/Gasto) | J3: Concepto | K3: Monto | M3: Tipo (Ingreso/Gasto) | N3: Concepto | O3: Monto | Q3: Tipo (Ingreso/Gasto) | R3: Concepto | S3: Monto
A4: Egreso | B4: Gasto | C4: -5587.51 | E4: Egreso | F4: Compras | G4: -3299.75 | I4: Egreso | J4: Compras | K4: -1998.88 | M4: Egreso | N4: DIDICard | O4: -1499 | Q4: Egreso | R4: Compras | S4: -4350.71
A5: Egreso | B5: Gasolina | C5: -400 | E5: Ingreso | F5: Abono | G5: 200 | I5: Ingreso | J5: Abono | K5: 1994.64 | M5: Egreso | N5: Gasolina | O5: -200 | Q5: Egreso | R5: Pips Plus | S5: -177
A6: Ingreso | B6: DIDI Driver | C6: 1000 | E6: Egreso | F6: Intereses | G6: -382 | I6: Ingreso | J6: Abono | K6: 4.24 | M6: Ingreso | N6: DIDICard | O6: 239 | Q6: Egreso | R6: Valeria | S6: -1399
A7: Ingreso | B7: DIDI Driver | C7: 1000 | E7: Ingreso | F7: Abono | G7: 3482 | I7: Egreso | J7: Mamá | K7: -2000 | M7: Ingreso | N7: Mamá Deposito | O7: 100 | Q7: Ingreso | R7: Abono | S7: 5926.71
A8: Ingreso | B8: Abono | C8: 416 | E8: Egreso | F8: Intereses | G8: -0.25 | I8: Ingreso | J8: Abono | K8: 2000 | M8: Egreso | N8: Didi viaje | O8: -42 | Q8: Egreso | R8: SkinCare | S8: -1655.4
A9: Egreso | B9: Telcel P | C9: -449 | E9: Egreso | F9: Pree | G9: -800 | I9: Egreso | J9: Despensa | K9: -1956.21 | M9: Egreso | N9: Didi viaje | O9: -57 | Q9: Egreso | R9: Libros | S9: -1918
A10: Ingreso | B10: CasBack | C10: 41.17 | E10: Egreso | F10: Despensa | G10: -431.5 | I10: Ingreso | J10: Abono | K10: 1956.21 | M10: Egreso | N10: Telcel S | O10: -25 | Q10: Ingreso | R10: Devolucion | S10: 1039.2
A11: Egreso | B11: Gasolina | C11: -400 | E11: Egreso | F11: Despensa | G11: -179 | I11: Egreso | J11: Dermatologa | K11: -1000 | M11: Ingreso | N11: CasBack | O11: 52.12 | Q11: Egreso | R11: Bolsa | S11: -1799.25
A12: Ingreso | B12: Abono | C12: 376 | E12: Egreso | F12: Valeria | G12: -455.4 | I12: Egreso | J12: Gasolina | K12: -900 | M12: Egreso | N12: Telcel S | O12: -20 | Q12: Egreso | R12: Cargador | S12: -1661.75
A13: Egreso | B13: Camion gdl | C13: -1082.4 | E13: Egreso | F13: Café | G13: -18.8 | I13: Ingreso | J13: Abono | K13: 1900 | M13: Egreso | N13: Gasolina | O13: -40 | Q13: Ingreso | R13: Abono | S13: 928.6
A14: Egreso | B14: Spotify | C14: -139 | E14: Egreso | F14: Google one | G14: -5 | I14: Egreso | J14: Guadalajara | K14: -1951.8 | M14: Egreso | N14: Intereses | O14: =-(191.44+13.12) -> -204.56 | Q14: Ingreso | R14: Abono | S14: 4242.46
A15: Egreso | B15: Guadalajara | C15: -180 | E15: Egreso | F15: Cena | G15: -387.5 | I15: Ingreso | J15: Abono | K15: 210 | M15: Ingreso | N15: Abono | O15: 1691.44 | Q15: Ingreso | R15: Abono | S15: 304.82
A16: Egreso | B16: ChatGpt | C16: -371.78 | E16: Egreso | F16: Gasolina | G16: -1000 | I16: Egreso | J16: Gasolina | K16: -250 | M16: Egreso | N16: Telmex | O16: -977 | Q16: Ingreso | R16: Abono | S16: 519.32
A17: Egreso | B17: Tienda | C17: -110 | E17: Ingreso | F17: Abono | G17: 499.69 | I17: Ingreso | J17: Intereses | K17: 0.8 | M17: Ingreso | N17: Abono | O17: 53.05 | Q17: Egreso | R17: Lavadora | S17: -7779.91
A18: Ingreso | B18: Tranferencia | C18: 400 | E18: Ingreso | F18: Abono | G18: 430 | M18: Egreso | N18: Gasolina | O18: -546
A19: Egreso | B19: Mamá | C19: -402 | E19: Egreso | F19: Valeria | G19: -283 | M19: Ingreso | N19: Abono | O19: 1474.95
A20: Egreso | B20: HboMax | C20: -89 | E20: Egreso | F20: Farmacia | G20: -193 | M20: Egreso | N20: Gasolina | O20: -800
A21: Egreso | B21: Telcel S | C21: -20 | E21: Egreso | F21: Gasolina | G21: -450 | M21: Egreso | N21: Farmacia | O21: -528.9
A22: Ingreso | B22: CasBack | C22: 36.83 | E22: Egreso | F22: Telcel S | G22: -20 | M22: Egreso | N22: Didi viaje | O22: -70
A23: Ingreso | B23: CasBack | C23: 5.89 | E23: Ingreso | F23: Abono | G23: 3293.51 | M23: Egreso | N23: Didi viaje | O23: -33
A24: Ingreso | B24: Abono | C24: 2700 | E24: Egreso | F24: Google one | G24: -17 | M24: Ingreso | N24: Abono | O24: 1431.9
A25: Egreso | B25: Valeria | C25: -2011.1 | E25: Egreso | F25: Despensa | G25: -2117.39 | M25: Egreso | N25: Didi viaje | O25: -51
A26: Egreso | B26: Gas | C26: -645.9 | E26: Egreso | F26: SkinCare | G26: -310 | M26: Ingreso | N26: Abono | O26: 51
A27: Ingreso | B27: Abono | C27: 900 | E27: Egreso | F27: Ropa | G27: -399 | M27: Egreso | N27: Gym | O27: -546
A28: Egreso | B28: Gasolina | C28: -500 | E28: Egreso | F28: Farmacia | G28: -170.36 | M28: Egreso | N28: Soporte lap | O28: -749
A29: Egreso | B29: Telcel P | C29: -449 | E29: Egreso | F29: Telcel S | G29: -100 | M29: Ingreso | N29: Abono | O29: 1295
A30: Ingreso | B30: Intereses | C30: 1.79 | E30: Egreso | F30: Gasolina | G30: -180 | M30: Egreso | N30: Mercancia | O30: -1199.86
E31: Ingreso | F31: Abono | G31: 130.98 | M31: Ingreso | N31: Abono | O31: 28
E32: Ingreso | F32: Abono | G32: 1500 | M32: Egreso | N32: Mercancia | O32: -327.12
E33: Egreso | F33: Despensa | G33: -296 | M33: Egreso | N33: Didi viaje | O33: -40
E34: Egreso | F34: Despensa | G34: -388.75 | M34: Egreso | N34: Gasolina | O34: -791.69
E35: Egreso | F35: Despensa | G35: -308 | M35: Ingreso | N35: Abono | O35: 380
E36: Egreso | F36: Valeria | G36: -83 | M36: Egreso | N36: Gasolina | O36: -1000
E37: Egreso | F37: Valeria | G37: -534.6 | M37: Ingreso | N37: Abono | O37: 550
E38: Ingreso | F38: Abono | G38: 122.83 | M38: Egreso | N38: Gym | O38: -546
E39: Egreso | F39: Gasolina | G39: -149 | M39: Ingreso | N39: Abono | O39: 800
E40: Ingreso | F40: Abono | G40: 700 | M40: Egreso | N40: Gasolina | O40: -400
E41: Ingreso | F41: Abono | G41: 615 | M41: Egreso | N41: Telcel P | O41: -449
E42: Egreso | F42: Valeria | G42: -603 | M42: Ingreso | N42: Abono | O42: 201
E43: Egreso | F43: Gasolina | G43: -500 | M43: Egreso | N43: OneDrive | O43: -184.99
E44: Ingreso | F44: Abono | G44: 209.4 | M44: Ingreso | N44: Abono | O44: 2416.8
E45: Egreso | F45: Gasolina | G45: -400 | M45: Ingreso | N45: Abono | O45: 270
E46: Egreso | F46: Gasolina | G46: -500 | M46: Ingreso | N46: CasBack | O46: 44
E47: Ingreso | F47: Abono | G47: 2751.73 | M47: Ingreso | N47: Abono | O47: 248.86
E48: Egreso | F48: Gasolina | G48: -1247.68 | M48: Egreso | N48: Didi viaje | O48: -38
E49: Egreso | F49: Gasolina | G49: -1000 | M49: Egreso | N49: Gasolina | O49: -400
E50: Egreso | F50: Telcel S | G50: -20 | M50: Egreso | N50: Preentreno | O50: -832
E51: Ingreso | F51: Abono | G51: 1700 | M51: Egreso | N51: Mamá | O51: -329
E52: Ingreso | F52: Abono | G52: 753.17 | M52: Egreso | N52: Gasolina | O52: -600
E53: Ingreso | F53: Abono | G53: 840.67 | M53: Egreso | N53: Comida | O53: -249
E54: Egreso | F54: Guadalajara | G54: -3125.9 | M54: Egreso | N54: Valeria | O54: -709.5
E55: Ingreso | F55: Abono | G55: 1500 | M55: Egreso | N55: Licencia | O55: -660
E56: Egreso | F56: Valeria | G56: -544.5 | M56: Egreso | N56: Calcamonia vehícular | O56: -2739
E57: Egreso | F57: Gasolina | G57: -951.66 | M57: Egreso | N57: Balatas | O57: -1159
E58: Egreso | F58: Despensa | G58: -889.04 | M58: Ingreso | N58: Abono | O58: 1016.001
E59: Ingreso | F59: Abono | G59: 800.8 | M59: Ingreso | N59: Abono | O59: 500
E60: Egreso | F60: Café | G60: -80 | M60: Egreso | N60: Pilas | O60: -78.5
E61: Ingreso | F61: IdeasFrescas | G61: 62 | M61: Egreso | N61: Sams | O61: -94.12
E62: Ingreso | F62: IdeasFrescas | G62: 6.3 | M62: Ingreso | N62: Abono | O62: 0.01
M63: Egreso | N63: Cambio balatas | O63: -1200
M64: Egreso | N64: OneDrive | O64: -184.99
M65: Ingreso | N65: DIDI Driver | O65: 500
M66: Egreso | N66: Gasolina | O66: -700
M67: Egreso | N67: Galletas | O67: -36
M68: Ingreso | N68: Abono | O68: 658
M69: Egreso | N69: Telmex | O69: -658
M70: Ingreso | N70: Abono | O70: 500
M71: Egreso | N71: Didi viaje | O71: -154
M72: Ingreso | N72: Abono | O72: 2000
M73: Egreso | N73: Ropa | O73: -1999
M74: Ingreso | N74: Abono | O74: 3000
M75: Egreso | N75: Ropa | O75: -499
M76: Egreso | N76: Comida | O76: -183.11
M77: Egreso | N77: Ropa | O77: -2597
M78: Ingreso | N78: Abono | O78: 2500
M79: Egreso | N79: Didi viaje | O79: -137
M80: Egreso | N80: OneDrive | O80: -184.99
M81: Egreso | N81: Didi viaje | O81: -302.25
M82: Egreso | N82: Comida | O82: -128.75
M83: Egreso | N83: Comida | O83: -390
M84: Egreso | N84: Camion Mzt | O84: -1102.4
M85: Egreso | N85: Gasolina | O85: -325.83

Sheet Prestamos
A1: Prestamos
A2: Mercado Pago | C2: =SUM(B4:B1048576) -> 19209.72 | D2: PrestaMaz | F2: =SUM(E4:E1048576)+1450 -> 3592.8 | G2: PrestaMaz Mama | I2: =SUM(H4:H1048576) -> 4140 | J2: Coppel | L2: =SUM(K4:K1048576) -> 0 | M2: ITESO | O2: =SUM(N4:N1048576) -> 0 | P2: BancoAzteca | R2: =SUM(Q4:Q1048576) -> 428 | S2: Prestamo Klark | U2: =SUM(T4:T1048576) -> 5000
A3: Fecha | B3: Abono | D3: Fecha | E3: Abono | G3: Fecha | H3: Abono | J3: Fecha | K3: Abono | M3: Fecha | N3: Abono | P3: Fecha | Q3: Abono | S3: Fecha | T3: Abono
A4: 2025-04-15 | B4: 2571.06 | D4: 2025-03-31 | E4: 1430 | G4: 2025-03-31 | H4: 1080 | P4: 2025-12-08 | Q4: 224 | S4: 2025-04-15 | T4: 2406.81
A5: 2025-04-15 | B5: 1666.36 | D5: 2025-04-07 | E5: 1430 | G5: 2025-04-07 | H5: 1080 | P5: 2025-12-15 | Q5: 204 | S5: 2025-04-15 | T5: 2530.61
A6: 2025-04-15 | B6: 1052.21 | D6: 2025-04-14 | E6: 1430 | G6: 2025-04-14 | H6: 1080 | S6: 2025-04-15 | T6: 519.06
A7: 2025-04-16 | B7: -1099.63 | D7: 2025-04-20 | E7: 1430 | G7: 2025-04-20 | H7: 900 | S7: 2025-04-15 | T7: -456.48
A8: 2025-06-13 | B8: 4569.26 | D8: 2025-04-27 | E8: 1430
A9: 2025-10-13 | B9: 1877.97 | D9: 2025-05-03 | E9: 1400
A10: 2025-11-03 | B10: 1877.97 | D10: 2025-05-26 | E10: -10000
A11: 2025-11-14 | B11: 1420.12 | D11: 2025-06-01 | E11: 720
A12: 2025-11-28 | B12: 1690.58 | D12: 2025-06-09 | E12: 720
A13: 2025-11-28 | B13: 1877.97 | D13: 2025-06-16 | E13: 720
A14: 2025-12-12 | B14: 1705.85 | D14: 2025-10-12 | E14: 720
D15: 2025-10-18 | E15: 712.8

Sheet Hoja1
A1: Presupuestos | J1: =B14+G12+K12 -> 26407
A2: Gastos fijos | E2: Prestamos mensuales | I2: Comida
A4: Suscripciones | B4: Monto | C4: Dia de pago del mes | E4: Suscripciones | F4: Monto | G4: Pago | I4: Suscripciones | J4: Monto semanal | K4: Gasto mensual
A5: HboMax | B5: 89 | C5: 5 | E5: BancoAzteca | F5: 7461 | G5: =224*4 -> 896 | I5: Despensa | J5: 2000 | K5: =Tabla58910[[#This Row],[Monto semanal ]]*4 -> 8000
A6: Telcel S | B6: 100 | C6: 15 | E6: Dpvale | F6: 2200 | G6: =2*550 -> 1100 | I6: Suplementos | J6: =Tabla58910[[#This Row],[Gasto mensual]]/4 -> 550 | K6: =1700+500 -> 2200
A7: Spotify | B7: 169 | C7: 15 | E7: Mercado pago | F7: 1890 | G7: 1890
A8: OneDrive | B8: 184 | C8: 5
A9: Telcel P | B9: 449 | C9: 15
A10: Telmex | B10: 630 | C10: 1
A11: Gym | B11: 700
A12: Gasolina | B12: 2000 | E12: Totales | G12: =SUM(G1:G7) -> 3886 | I12: Totales | K12: =SUM(K1:K7) -> 10200
A13: Carro | B13: 8000 | C13: 30
A14: Totales | B14: =SUM(B5:B13) -> 12321

Sheet Conceptos (hidden)
A1: Ingresos | C1: Egresos | E1: Cuentas
A2: DIDI Driver | C2: Mercado Pago | E2: Efectivo
A3: IdeasFrescas | C3: Telcel P | E3: BanCoppel
A4: Mamá Deposito | C4: StoriCard | E4: BancoAzteca
A5: CasBack | C5: DidiCard | E5: DidiCard
A6: Prestamo Hugo | C6: PrestaMaz | E6: StoriCard
A7: Venta | C7: PrestaMaz Mama | E7: KlarkCard
A8: Retiro de cuenta | C8: Coppel | E8: RappiCard
A9: Tranferencia | C9: ITESO | E9: Liverpool
A10: Valeria | C10: BancoAzteca | E10: StoriCuenta
A11: Pancho | C11: KlarkCard | E11: 449
A12: Intereses | C12: RappiCard
A13: MercadoPago | C13: Telmex
A14: PrestaMaz | C14: Gym
A15: Devolucion | C15: Liverpool
A16: Prestamo MercadoPago | C16: Spotify
C17: Prestamo Klark
C18: Compras
C19: Comida
C20: Estacionamiento
C21: Corte de Cabello
C22: Gasolina
C23: Liverpool
C24: Didi viaje
C25: Camion
C26: Telcel S
C27: Valeria
C28: Kiosko
C29: Mamá
C30: Tienda
C31: Baño
C32: C
C33: Cargador
C34: Mensualidad Carro
C35: Pips Plus
C36: Bancoppel
C37: Autolavado
C38: Comision
C39: Intereses
C40: OneDrive
C41: ChatGpt
C42: Yeny
C43: Mayra
C44: Tacos
C45: Retiro
C46: StoriCuenta
C47: Galletas
C48: Estadio
C49: Cerveza
C50: Pago para RappiCard
C51: Pre
C52: Lentes
C53: Prestamo Pancho
C54: Luz
C55: Fiesta Helena
C56: Desayuno
C57: Agua
C58: Café
C59: SkinCare
C60: Transferencia
C61: Pree
C62: Semaforo
C63: Oxxo
C64: Despensa
C65: Google one
C66: Cena
C67: Abuela
C68: Transito
C69: Farmacia
C70: Gasto
C71: Libros
C72: Ropa
C73: Servicio Carro
C74: Bolsa
C75: Pau
C76: Terapia
C77: Cumple Trabajo
C78: Impuestos
C79: Carrera
C80: Basquet
C81: Torta
C82: Soporte lap
C83: Pan
C84: Mercancia
C85: Navegante
C86: Paty cumpleaños
C87: Huevos
C88: Trabajo
C89: Carro
C90: Manejo de cuenta Bancoppel
C91: Dpvale
C92: Medicina
C93: Transporte
C94: Starbucks
C95: Preentreno
C96: Licencia
C97: Calcamonia vehícular
C98: Balatas
C99: Pilas
C100: Sams
C101: Desconocido
C102: Lavadora
C103: Dermatologa
C104: Cambio balatas
C105: Fuente
C106: Camion gdl
C107: Guadalajara
C108: Guadalajara
C109: Guadalajara
C110: Guadalajara
C111: HboMax
C112: Copias
C113: Empanada
C114: Movimientos
C115: Camion Gdl
C116: Camion Mzt
C117: Gas
C118: Coca
